bitfinex/quotes_ETHUSD_20241009
["timestamp","ask_amount","ask_price","bid_price","bid_amount"]
[1728438889894,8.10821,2466.7,2466.2,0.7763]
[1728438890310,4.05419,2466.6,2466.2,0.7763]
[1728438890907,4.05377,2466.9,2466.4,4.05448]
[1728438891227,4.05377,2466.9,2466.5,0.7851]
[1728438891780,4.05338,2467.1,2466.5,0.7851]
[1728438892041,4.05338,2467.1,2466.5,4.83942]
[1728438892233,4.05323,2467.2,2466.6,4.05408]
[1728438892403,4.05323,2467.2,2466.7,1.190508]
[1728438893098,4.0531,2467.3,2466.8,0.794]
[1728438893685,8.10623,2467.3,2466.8,0.794]
[1728438893882,4.0531,2467.3,2466.8,1.6193458]
[1728438897023,4.05318,2467.2,2466.8,0.794]
[1728438897224,4.05365,2467.0,2466.6,0.8043]
[1728438897434,8.10725,2467.0,2466.6,0.8043]
[1728438897805,4.0536,2467.0,2466.6,0.8043]
[1728438899052,8.10659,2467.2,2466.6,0.8043]
[1728438899545,4.05352,2467.0,2466.6,0.8043]
[1728438899842,4.05336,2467.1,2466.6,1.9956]
[1728438900349,4.05371,2466.9,2466.6,0.8043]
[1728438900843,4.05392,2466.8,2466.6,0.8043]
[1728438901240,8.10715,2467.0,2466.6,0.8043]
[1728438901557,4.85726,2467.3,2466.6,0.8043]
[1728438901558,4.05325,2467.2,2466.6,0.8043]
[1728438901715,4.05325,2467.2,2466.7,0.8123]
[1728438902346,4.05325,2467.2,2466.7,1.298933]
[1728438902545,4.05335,2467.1,2466.7,1.298933]
[1728438902748,4.05335,2467.1,2466.3,0.8253]
[1728438902749,4.5180761,2467.1,2466.3,0.8253]
[1728438902949,4.05393,2466.8,2466.3,3.8253]
[1728438903529,8.10786,2466.8,2466.3,3.8253]
[1728438903931,4.05393,2466.8,2466.3,3.8253]
[1728438906642,3.6943761,2466.7,2466.3,0.8253]
[1728438906875,4.05426,2466.6,2466.3,0.8253]
[1728438907744,4.459283,2466.8,2466.3,0.8253]
[1728438908068,4.05405,2466.7,2466.3,0.8253]
[1728438913070,4.0539,2466.8,2466.2,4.84691]
[1728438913276,4.0539,2466.8,2466.3,1.276791]
[1728438914674,4.05359,2467.0,2466.4,4.82659]
[1728438914875,4.05359,2467.0,2466.5,4.82634]
[1728438915077,4.05359,2467.0,2466.5,0.7721]
[1728438916980,4.05371,2466.9,2466.5,0.7721]
[1728438918681,4.05359,2467.0,2466.5,0.7721]
[1728438918845,8.1072,2467.0,2466.5,0.7721]
[1728438919046,4.05359,2467.0,2466.5,0.7721]
[1728438920258,4.05359,2467.0,2466.5,1.3032161]
[1728438920439,4.05327,2467.2,2466.7,0.7764]
[1728438921065,8.10656,2467.2,2466.7,0.7764]
[1728438921379,4.0529,2467.4,2466.8,0.7764]
[1728438921588,4.0532,2467.2,2466.8,0.7764]
[1728438923067,4.05336,2467.1,2466.8,0.7764]
[1728438923254,8.5397361,2467.1,2466.6,0.8109]
[1728438923643,4.05364,2467.0,2466.6,0.8109]
[1728438924285,8.5397361,2467.1,2466.6,0.8109]
[1728438925253,4.84536,2467.1,2466.6,0.8109]
[1728438925486,4.05336,2467.1,2466.6,0.8109]
[1728438925998,4.05357,2467.0,2466.6,0.8109]
[1728438926791,5.23344261,2467.1,2466.2,0.7635]
[1728438926792,4.05399,2466.7,2466.2,0.7635]
[1728438926979,4.05397,2466.8,2466.2,4.81821]
[1728438927959,4.05357,2467.0,2466.4,0.798]
[1728438928458,4.05367,2466.9,2466.4,0.798]
[1728438928665,8.10721,2467.0,2466.4,4.85248]
[1728438928896,4.05382,2466.9,2466.4,0.798]
[1728438929388,9.36954861,2467.0,2466.5,0.7951]
[1728438929870,5.31590861,2467.0,2466.5,0.7951]
[1728438930591,4.05357,2467.0,2466.6,0.7694]
[1728438930756,4.05326,2467.2,2466.6,0.7694]
[1728438931095,4.05335,2467.1,2466.6,4.82356]
[1728438931393,4.05335,2467.1,2466.7,0.8283]
[1728438932448,5.23344861,2467.1,2466.7,0.8283]
[1728438934196,4.05326,2467.2,2466.7,0.8283]
[1728438934401,4.05294,2467.4,2466.9,0.7987]
[1728438934701,4.05312,2467.3,2466.9,0.7987]
[1728438935259,4.05294,2467.4,2466.9,0.7987]
[1728438935456,4.05302,2467.3,2466.9,0.7987]
[1728438937501,4.05318,2467.2,2466.9,0.7987]
[1728438938896,3.6943761,2467.3,2466.9,0.7987]
[1728438939106,4.05294,2467.4,2466.9,0.7987]
[1728438939272,8.10589,2467.4,2466.9,0.7987]
[1728438939475,4.05294,2467.4,2466.9,0.7987]
[1728438939920,4.86292,2467.6,2466.9,4.85236]
[1728438940201,4.05318,2467.2,2466.9,0.7987]
[1728438940911,7.7474261,2467.3,2466.9,0.7987]
[1728438941510,4.05317,2467.2,2466.9,0.7987]
[1728438942706,1.70627941,2467.1,2466.9,0.7987]
[1728438943207,8.10649,2467.2,2466.9,0.7987]
[1728438943208,4.05317,2467.2,2466.9,0.7987]
[1728438950988,4.0535,2467.0,2466.9,0.7987]
[1728438951730,5.75965941,2467.1,2466.9,0.7987]
[1728438951889,1.70627941,2467.1,2466.9,0.7987]
[1728438952594,5.75967941,2467.1,2466.7,0.7914]
[1728438953092,5.75964941,2467.1,2466.7,0.7914]
[1728438958135,1.70627941,2467.1,2466.7,0.7914]
[1728438959948,5.75971941,2467.1,2466.7,0.7914]
[1728438961630,1.70627941,2466.9,2466.5,0.7554]
[1728438961831,0.7515,2466.8,2466.5,0.7554]
[1728438962540,0.7515,2466.8,2466.3,3.0]
[1728438962743,4.0541,2466.7,2466.3,0.8185]
[1728438962921,8.1082,2466.7,2466.3,0.8185]
[1728438963118,1.70627941,2466.5,2466.0,0.8185]
[1728438963316,4.05453,2466.4,2466.0,0.8185]
[1728438963529,4.05417,2466.6,2466.0,0.8185]
[1728438963530,4.05417,2466.6,2466.1,4.05494]
[1728438963905,4.05417,2466.6,2466.0,4.87348]
[1728438964126,4.05417,2466.6,2466.1,3.0]
[1728438965333,4.05417,2466.6,2466.1,3.787348]
[1728438966928,8.10845,2466.6,2466.1,3.787348]
[1728438967861,4.05451,2466.4,2466.0,0.8185]
[1728438968079,2.48397941,2466.7,2465.7,0.8178]
[1728438968080,4.05482,2466.2,2465.7,0.8178]
[1728438968224,1.70627941,2466.1,2465.7,0.8178]
[1728438968429,4.05482,2466.2,2465.7,0.8178]
[1728438971955,4.05482,2466.2,2465.5,3.0]
[1728438971956,4.05516,2466.0,2465.5,3.8214]
[1728438972344,4.05516,2466.0,2465.5,7.87736]
[1728438972729,0.82,2465.9,2465.5,7.87736]
[1728438972930,0.82,2465.9,2465.6,4.05579]
[1728438973135,0.82,2465.9,2465.5,3.8214]
[1728438973331,0.82,2465.9,2465.5,4.609143]
[1728438973644,0.82,2465.9,2465.5,8.665063]
[1728438974831,0.82,2465.9,2465.4,3.0]
[1728438974832,2.52627941,2465.9,2465.4,3.0]
[1728438975060,2.52627941,2465.9,2465.4,7.05609]
[1728438975373,0.82,2465.9,2465.4,7.05603]
[1728438975531,0.8092,2466.3,2465.7,4.05554]
[1728438975870,1.70627941,2466.5,2466.0,0.7775]
[1728438975871,6.56983941,2466.5,2466.0,0.7775]
[1728438976044,0.8092,2466.5,2466.2,4.05481]
[1728438976251,1.70627941,2466.7,2466.0,4.83253]
[1728438976252,2.46547941,2466.7,2466.0,4.83253]
[1728438976447,0.7565,2466.4,2466.0,4.83253]
[1728438977209,1.70627941,2466.5,2466.0,8.88758]
[1728438977379,4.81071,2466.6,2466.0,8.88758]
[1728438977576,0.7565,2466.6,2466.1,4.05486]
[1728438978073,0.7565,2466.6,2466.2,4.05479]
[1728438978371,1.70627941,2466.7,2466.2,4.943522]
[1728438978579,0.7761,2466.8,2466.4,4.05447]
[1728438978936,0.7761,2466.8,2466.4,4.05438]
[1728438980235,4.0536,2467.0,2466.5,4.05429]
[1728438980435,4.8155,2467.0,2466.5,4.05429]
[1728438980667,4.8155,2467.0,2466.4,4.05438]
[1728438981339,4.8155,2467.0,2466.5,4.05431]
[1728438981541,4.8155,2467.0,2466.6,4.05412]
[1728438981542,0.7619,2467.0,2466.6,4.05412]
[1728438981745,0.7619,2467.0,2466.6,4.85092]
[1728438981939,8.1819,2467.3,2466.8,4.05368]
[1728438982207,8.1819,2467.3,2466.8,4.70935594]
[1728438982503,9.88817941,2467.3,2466.8,4.70935594]
[1728438983344,2.46817941,2467.3,2466.8,4.70935594]
[1728438983544,4.85379,2467.8,2467.2,4.05317]
[1728438983791,4.05264,2467.6,2467.0,4.05335]
[1728438985345,2.53777941,2467.5,2466.9,0.804]
[1728438985543,4.05286,2467.4,2466.9,3.804]
[1728438986551,8.10585,2467.4,2466.9,3.804]
[1728438986747,8.10582,2467.4,2466.9,3.804]
[1728438986943,4.05286,2467.4,2466.9,3.804]
[1728438987147,2.49617941,2467.3,2466.9,3.0]
[1728438987347,1.70627941,2467.1,2466.7,3.8108]
[1728438987880,1.70627941,2467.1,2466.7,3.0]
[1728438988671,1.70627941,2467.1,2466.6,4.05402]
[1728438988980,4.0532,2467.2,2466.6,8.10808]
[1728438989313,2.49617941,2467.3,2466.8,4.0538]
[1728438989493,0.8135,2467.5,2467.0,4.0535]
[1728438989709,1.70627941,2467.6,2467.2,4.05317]
[1728438990008,4.05221,2467.8,2467.2,8.10625]
[1728438990009,0.7974,2467.7,2467.2,8.10625]
[1728438990221,0.7974,2467.7,2467.2,4.05308]
[1728438993115,0.7974,2467.7,2467.3,0.8241]
[1728438994779,4.84978,2467.7,2467.3,0.8241]
[1728438994974,1.70627941,2467.6,2467.3,0.8241]
[1728438998220,4.05194,2468.0,2467.3,0.8241]
[1728438998221,5.75821941,2468.0,2467.4,4.05273]
[1728438998378,5.75821941,2468.0,2467.3,1.311817]
[1728438998582,4.05219,2467.8,2467.3,4.311817]
[1728438998828,5.75846941,2467.8,2467.3,4.311817]
[1728438999497,0.8308,2467.7,2467.3,4.311817]
[1728438999697,1.70627941,2467.6,2467.3,1.311817]
[1728438999906,0.8308,2467.7,2467.3,1.311817]
[1728439000993,4.88316,2467.7,2467.3,1.311817]
[1728439001524,0.8308,2467.7,2467.3,1.311817]
[1728439001685,5.75846941,2467.8,2467.4,0.9417957]
[1728439002086,5.75846941,2467.8,2467.3,0.8241]
[1728439002529,9.81079941,2467.8,2467.3,0.8241]
[1728439003037,5.75846941,2467.8,2467.3,4.87707]
[1728439003549,5.75846941,2467.8,2467.3,0.8241]
[1728439004339,5.75846941,2467.8,2467.3,4.87709]
[1728439004537,5.75846941,2467.8,2467.3,5.770105]
[1728439005131,9.81079941,2467.8,2467.3,1.717115]
[1728439005297,4.05236,2467.7,2467.3,0.8241]
[1728439005493,5.75880941,2467.6,2467.3,0.8241]
[1728439005823,1.70627941,2467.6,2467.3,0.8241]
[1728439008727,5.75846941,2467.8,2467.3,0.8241]
[1728439008904,5.75846941,2467.8,2467.3,1.611825]
[1728439009338,9.81076941,2467.8,2467.3,1.611825]
[1728439009642,5.75846941,2467.8,2467.3,0.8241]
[1728439010511,9.81078941,2467.8,2467.3,0.8241]
[1728439010713,4.05236,2467.7,2467.3,0.8241]
[1728439013317,5.75846941,2467.8,2467.3,0.8241]
[1728439013649,9.81078941,2467.8,2467.3,0.8241]
[1728439013800,5.75846941,2467.8,2467.3,0.8241]
[1728439014498,9.81076941,2467.8,2467.3,0.8241]
[1728439014840,9.81075941,2467.8,2467.3,0.8241]
[1728439015047,5.75846941,2467.8,2467.3,0.8241]
[1728439019813,1.70627941,2467.6,2467.3,0.8241]
[1728439021738,5.75822941,2468.0,2467.5,0.7536]
[1728439021914,4.05204,2467.9,2467.5,0.7536]
[1728439022304,5.75822941,2468.0,2467.5,4.80628]
[1728439022934,9.81020941,2468.0,2467.5,0.7536]
[1728439023131,4.05163,2468.2,2467.8,0.7968]
[1728439025049,10.61069941,2468.4,2467.8,0.7968]
[1728439025244,10.61069941,2468.4,2467.8,4.84897]
[1728439025245,4.85307,2468.4,2467.8,4.84897]
[1728439025448,6.55934941,2468.4,2467.8,5.333867]
[1728439026026,5.75754941,2468.4,2467.8,5.333867]
[1728439026232,5.75754941,2468.4,2467.8,5.333787]
[1728439026742,4.05114,2468.5,2467.8,5.333777]
[1728439027074,4.80146,2468.6,2468.0,4.86994]
[1728439027752,4.05096,2468.6,2468.1,0.8112]
[1728439028125,4.05118,2468.5,2468.1,0.8112]
[1728439028429,1.70627941,2468.5,2468.1,0.8112]
[1728439028630,4.0512,2468.4,2468.1,0.8112]
[1728439030363,5.75768941,2468.3,2467.9,0.8155]
[1728439030521,1.70627941,2468.3,2467.9,4.62253447]
[1728439030960,8.8613,2468.4,2467.9,4.62253447]
[1728439031175,4.81,2468.4,2468.0,0.91596015]
[1728439032362,8.86136,2468.4,2468.0,0.91596015]
[1728439032664,4.81,2468.4,2468.0,0.91596015]
[1728439033224,4.0512,2468.4,2468.0,0.91596015]
[1728439036833,4.05141,2468.3,2468.0,0.91596015]
[1728439037565,4.0512,2468.4,2468.0,0.91596015]
[1728439040373,4.0512,2468.4,2467.9,3.8155]
[1728439040559,1.70627941,2468.1,2467.9,0.8155]
[1728439040870,5.75774941,2468.3,2467.9,0.8155]
[1728439041070,6.57647941,2468.3,2467.9,0.8155]
[1728439041235,6.57647941,2468.3,2467.6,3.0]
[1728439041236,5.75808941,2468.1,2467.6,3.0]
[1728439042536,4.05194,2468.0,2467.5,3.8076]
[1728439042735,5.75832941,2467.9,2467.5,0.8076]
[1728439043241,9.81047941,2467.9,2467.5,0.8076]
[1728439043630,5.75832941,2467.9,2467.5,0.8076]
[1728439045375,1.70627941,2467.7,2467.5,0.8076]
[1728439045578,1.70627941,2467.7,2467.3,0.8148]
[1728439046082,5.75863941,2467.7,2467.3,0.8148]
[1728439047181,4.05236,2467.7,2467.3,0.8148]
[1728439047566,4.05222,2467.8,2467.3,0.8148]
[1728439047762,4.05222,2467.8,2467.3,1.301588]
[1728439049183,4.05236,2467.7,2467.3,1.301588]
[1728439049345,4.05236,2467.7,2467.3,0.8148]
[1728439052086,5.75863941,2467.7,2467.3,0.8148]
[1728439059058,4.05253,2467.6,2467.3,0.8148]
[1728439059562,5.75863941,2467.7,2467.3,0.8148]
[1728439059969,4.05261,2467.6,2467.3,0.8148]
[1728439061683,5.75863941,2467.7,2467.3,0.8148]
[1728439063400,6.55883941,2467.7,2467.3,0.8148]
[1728439063985,10.61128941,2467.7,2467.3,0.8148]
[1728439064284,6.55883941,2467.7,2467.3,0.8148]
[1728439064592,5.75863941,2467.7,2467.3,0.8148]
[1728439065299,9.81110941,2467.7,2467.3,0.8148]
[1728439065499,5.75863941,2467.7,2467.3,0.8148]
[1728439066504,10.61016941,2467.9,2467.3,0.8148]
[1728439066656,4.05238,2467.7,2467.3,0.8148]
[1728439070596,8.10484,2467.7,2467.3,0.8148]
[1728439070895,5.75865941,2467.7,2467.3,0.8148]
[1728439071118,4.05263,2467.6,2467.3,0.8148]
[1728439072106,5.75865941,2467.7,2467.3,0.8148]
[1728439072335,9.81114941,2467.7,2467.3,0.8148]
[1728439072891,5.75865941,2467.7,2467.3,0.8148]
[1728439073182,4.05238,2467.7,2467.3,0.8148]
[1728439073806,8.10483,2467.7,2467.3,0.8148]
[1728439074194,4.05238,2467.7,2467.3,0.8148]
[1728439074392,8.10483,2467.7,2467.3,0.8148]
[1728439074600,4.05238,2467.7,2467.3,0.8148]
[1728439074916,4.05263,2467.6,2467.3,0.8148]
[1728439075296,4.05271,2467.5,2467.3,0.8148]
[1728439075496,6.52348941,2467.5,2467.1,0.8121]
[1728439075729,4.05271,2467.5,2467.1,0.8121]
[1728439077224,8.10551,2467.5,2467.1,1.598658]
[1728439077530,4.05271,2467.5,2467.1,0.8121]
[1728439078810,8.1055,2467.5,2467.1,0.8121]
[1728439079020,4.05271,2467.5,2467.1,0.8121]
[1728439079405,4.05246,2467.7,2467.1,4.86538]
[1728439079624,4.05246,2467.7,2467.1,0.7949]
[1728439079929,4.05246,2467.7,2467.2,0.484838]
[1728439080136,4.05246,2467.7,2467.3,0.7949]
[1728439082311,8.10491,2467.7,2467.3,0.7949]
[1728439083220,4.0527,2467.5,2467.1,0.7877]
[1728439083420,4.05301,2467.3,2466.9,3.7877]
[1728439084735,5.75956941,2467.2,2466.9,0.7877]
[1728439086746,4.0535,2467.0,2466.6,0.8053]
[1728439087057,4.0535,2467.0,2466.3,3.8053]
[1728439087058,4.05399,2466.7,2466.3,3.8053]
[1728439087205,8.10808,2466.7,2466.3,0.8053]
[1728439087549,1.70627941,2466.8,2466.3,0.8053]
[1728439088038,1.70627941,2466.8,2466.3,4.85993]
[1728439088817,1.70627941,2466.8,2466.3,0.8053]
[1728439089022,2.77098335,2466.8,2466.3,0.8053]
[1728439089878,4.05409,2466.7,2466.3,0.8053]
[1728439090056,4.05417,2466.6,2466.3,0.8053]
[1728439090339,4.05409,2466.7,2466.3,0.8053]
[1728439090527,1.70627941,2466.6,2466.3,0.8053]
[1728439090736,0.57603694,2466.5,2466.1,0.7745]
[1728439090912,4.05433,2466.5,2466.1,0.7745]
[1728439091846,4.05433,2466.5,2465.9,0.8219]
[1728439092033,1.70627941,2466.4,2465.9,0.8219]
[1728439093136,5.76080941,2466.4,2465.9,0.8219]
[1728439093720,1.70627941,2466.4,2465.9,0.8219]
[1728439093921,4.05433,2466.5,2465.9,4.8771]
[1728439094120,4.05372,2466.9,2466.1,4.05495]
[1728439094121,4.85201,2466.9,2466.1,4.05495]
[1728439094357,4.85201,2466.9,2466.4,0.8184]
[1728439095129,5.75978941,2467.0,2466.5,4.05428]
[1728439095444,1.70627941,2467.0,2466.5,4.05428]
[1728439095645,1.70627941,2467.0,2466.5,5.247001]
[1728439096520,4.05352,2467.0,2466.5,5.247001]
[1728439097728,4.05352,2467.0,2466.5,1.192721]
[1728439099465,4.05352,2467.0,2466.5,1.196981]
[1728439100876,4.84529,2467.1,2466.5,0.00426]
[1728439100877,4.05369,2466.9,2466.5,0.00426]
[1728439101585,4.84529,2467.1,2466.5,0.00426]
[1728439101754,4.0537,2466.9,2466.5,0.00426]
[1728439103180,4.05351,2467.0,2466.5,0.00426]
[1728439105583,4.84529,2467.1,2466.5,4.05849]
[1728439105789,8.89874,2467.1,2466.6,0.7831]
[1728439106084,10.15836959,2467.1,2466.6,0.7831]
[1728439106285,6.10491959,2467.1,2466.6,0.7831]
[1728439106652,4.05354,2467.0,2466.6,0.7831]
[1728439106974,4.05375,2466.9,2466.6,0.7831]
[1728439107683,4.05399,2466.7,2466.5,0.00426]
[1728439108387,0.810729,2466.8,2466.5,0.00426]
[1728439108703,5.31304959,2467.1,2466.5,0.00426]
[1728439108880,5.31304959,2467.1,2466.6,0.8188]
[1728439108881,4.05353,2467.0,2466.6,0.8188]
[1728439109083,4.05342,2467.1,2466.6,0.8188]
[1728439109877,8.10687,2467.1,2466.6,0.8188]
[1728439110050,9.37006259,2467.1,2466.6,0.8188]
[1728439110248,5.31661259,2467.1,2466.6,0.8188]
[1728439110871,5.31661259,2467.1,2466.6,4.87295]
[1728439111278,9.37009259,2467.1,2466.6,0.8188]
[1728439111481,5.31661259,2467.1,2466.6,0.8188]
[1728439112202,5.31661259,2467.1,2466.6,4.87294]
[1728439112443,4.05342,2467.1,2466.6,4.87294]
[1728439112693,4.05342,2467.1,2466.6,0.8188]
[1728439113669,4.05342,2467.1,2466.5,4.05848]
[1728439113670,4.05311,2467.3,2466.7,4.0539]
[1728439113868,8.10562,2467.5,2466.9,0.7655]
[1728439114094,4.05288,2467.4,2466.9,0.7655]
[1728439114511,6.05816759,2467.5,2466.9,0.7655]
[1728439114888,4.05294,2467.4,2466.9,0.7655]
[1728439115124,6.05816759,2467.5,2466.9,0.7655]
[1728439115411,6.05816759,2467.5,2466.6,0.8273]
[1728439115412,7.75076587,2467.2,2466.6,0.8273]
[1728439115601,0.8302,2467.3,2466.6,0.8273]
[1728439115602,3.69755587,2467.0,2466.6,0.8273]
[1728439115784,4.05381,2466.9,2466.6,0.8273]
[1728439116581,4.05385,2466.8,2466.6,0.8273]
[1728439116911,8.10759,2466.9,2466.6,0.8273]
[1728439117109,4.91193659,2466.9,2466.6,0.8273]
[1728439117921,4.05395,2466.8,2466.5,0.00426]
[1728439118073,4.054,2466.7,2466.5,0.00426]
[1728439118276,5.73459366,2466.7,2466.5,0.00426]
[1728439118503,7.75171587,2466.6,2466.5,0.00426]
[1728439124811,8.56121587,2466.6,2466.5,0.00426]
[1728439128927,12.11121587,2466.6,2466.5,0.00426]
[1728439130284,0.7619,2466.4,2465.4,0.8273]
[1728439130580,7.75315587,2465.8,2465.4,0.8273]
[1728439131208,4.05576,2465.7,2465.4,0.8273]
[1728439132500,3.69755587,2465.8,2465.4,0.8273]
[1728439132702,8.87824,2465.9,2465.4,0.8273]
[1728439132997,4.05541,2465.9,2465.4,0.8273]
[1728439133192,8.11081,2465.9,2465.4,0.8273]
[1728439133392,4.0554,2465.9,2465.4,0.8273]
[1728439133632,8.11081,2465.9,2465.4,0.8273]
[1728439133923,4.05557,2465.8,2465.4,0.8273]
[1728439136023,4.05565,2465.7,2465.4,0.8273]
[1728439137691,4.05593,2465.6,2465.4,0.8273]
[1728439138619,4.05565,2465.7,2465.4,0.8273]
[1728439141812,8.1114,2465.7,2465.4,0.8273]
[1728439142013,4.05565,2465.7,2465.4,0.8273]
[1728439146453,4.05541,2465.9,2465.4,0.8273]
[1728439146625,0.7597,2466.0,2465.4,1.315659]
[1728439146834,5.76343267,2465.9,2465.4,1.315659]
[1728439147055,4.05565,2465.7,2465.4,0.8273]
[1728439147466,8.11139,2465.7,2465.4,0.8273]
[1728439147774,4.05565,2465.7,2465.4,0.8273]
[1728439148353,4.05592,2465.6,2465.2,0.8274]
[1728439151360,4.05592,2465.6,2464.9,4.46293]
[1728439151361,3.70153518,2465.5,2465.0,0.8274]
[1728439151793,4.05614,2465.4,2465.0,0.8274]
[1728439155547,4.05592,2465.6,2465.0,0.8274]
[1728439155743,4.05599,2465.5,2465.0,0.8274]
[1728439157792,4.05613,2465.4,2465.0,0.8274]
[1728439159752,4.05613,2465.4,2465.0,0.8274]
[1728439159948,4.05631,2465.3,2465.0,0.8274]
[1728439161565,4.05647,2465.2,2464.8,0.8139]
[1728439161965,8.11309,2465.2,2464.8,0.8139]
[1728439162269,4.946069,2465.2,2464.8,0.8139]
[1728439163312,4.83912,2465.4,2464.5,4.4636]
[1728439163313,4.05622,2465.4,2464.9,4.05695]
[1728439163607,4.05622,2465.4,2465.0,0.8024]
[1728439163801,8.11247,2465.4,2465.0,0.8024]
[1728439164101,8.11246,2465.4,2465.0,0.8024]
[1728439164265,9.08903555,2465.4,2465.0,0.8024]
[1728439168917,4.05648,2465.2,2465.0,0.8024]
[1728439171188,4.05691,2465.0,2464.5,0.7671]
[1728439171385,5.76582192,2465.0,2464.5,0.7671]
[1728439171782,9.82277192,2465.0,2464.5,0.7671]
[1728439171979,4.05696,2464.9,2464.5,0.7671]
[1728439173083,4.05712,2464.8,2464.5,0.7671]
[1728439175821,8.11434,2464.8,2464.5,0.7671]
[1728439176029,4.05712,2464.8,2464.5,0.7671]
[1728439176714,4.05738,2464.7,2464.3,0.8257]
[1728439176912,5.41266917,2464.8,2464.3,0.8257]
[1728439177242,4.05713,2464.8,2464.4,0.8257]
[1728439184048,4.05704,2464.9,2464.4,0.8257]
[1728439184251,8.11415,2464.9,2464.4,0.8257]
[1728439184451,8.11412,2464.9,2464.4,0.8257]
[1728439184615,4.05714,2464.8,2464.4,0.8257]
[1728439184818,4.05704,2464.9,2464.4,0.8257]
[1728439185269,4.05722,2464.8,2464.3,4.05793]
[1728439185421,4.05722,2464.8,2463.8,0.8272]
[1728439185422,0.7677,2464.3,2463.8,0.8272]
[1728439185627,7.76182447,2464.2,2463.8,0.8272]
[1728439185949,5.31694245,2464.2,2463.8,0.8272]
[1728439186462,9.02061692,2464.2,2463.8,0.8272]
[1728439186747,4.96243692,2464.2,2463.8,0.8272]
[1728439186948,4.0586,2463.9,2463.6,0.8272]
[1728439190549,4.05878,2463.8,2463.6,0.8272]
[1728439190718,4.0586,2463.9,2463.6,0.8272]
[1728439191117,8.11674,2464.1,2463.6,0.8272]
[1728439191375,4.05855,2464.0,2463.6,0.8272]
[1728439191751,4.05836,2464.1,2463.6,0.8272]
[1728439192432,4.8257,2464.3,2463.8,0.7578]
[1728439192633,4.05781,2464.4,2463.8,4.05866]
[1728439192849,4.6550937,2464.4,2463.9,0.7578]
[1728439194061,5.76863957,2464.3,2463.9,0.7578]
[1728439194458,4.05804,2464.3,2463.9,0.7578]
[1728439195954,8.36101806,2464.4,2463.9,0.7578]
[1728439196285,0.5972837,2464.4,2463.9,4.81629]
[1728439196470,4.05763,2464.5,2463.9,4.81629]
[1728439197041,4.05787,2464.4,2463.9,0.7578]
[1728439198181,4.05763,2464.5,2463.9,4.05859]
[1728439198381,4.05744,2464.7,2464.0,4.05833]
[1728439198542,4.05758,2464.6,2464.1,0.8016]
[1728439199145,5.23950089,2464.7,2464.1,4.05817]
[1728439199389,8.11484,2464.7,2464.2,0.8016]
[1728439199575,4.0574,2464.7,2464.2,0.8016]
[1728439200275,4.04044,2464.7,2464.2,0.8016]
[1728439200677,4.55872758,2464.9,2464.2,0.8016]
[1728439200883,4.05705,2464.9,2464.5,0.8016]
[1728439201050,7.76273436,2465.0,2464.5,0.8016]
[1728439201252,4.05745,2464.6,2464.2,0.8016]
[1728439201653,4.05762,2464.5,2464.2,0.8016]
[1728439201883,4.05745,2464.6,2464.2,0.8016]
[1728439202252,4.05762,2464.5,2464.2,0.8016]
[1728439203196,4.05779,2464.4,2464.2,0.8016]
[1728439203394,3.70592436,2464.6,2464.2,0.8016]
[1728439203395,4.05748,2464.6,2464.2,0.8016]
[1728439203960,8.11509,2464.6,2464.2,0.8016]
[1728439204385,4.05761,2464.5,2464.2,0.8016]
[1728439205203,4.05748,2464.6,2464.2,0.8016]
[1728439205372,4.05682,2465.0,2464.3,0.8016]
[1728439205577,11.47656,2465.2,2464.8,0.8016]
[1728439205789,4.05621,2465.4,2464.8,4.85872]
[1728439206163,4.05632,2465.3,2464.8,4.85872]
[1728439206360,4.05632,2465.3,2464.8,1.693201]
[1728439206595,7.76213436,2465.4,2464.8,0.8016]
[1728439206789,4.05649,2465.2,2464.8,0.8016]
[1728439206960,4.05663,2465.1,2464.8,0.8016]
[1728439207896,4.05633,2465.3,2464.8,0.8016]
[1728439208205,8.11246,2465.4,2465.0,0.809]
[1728439208401,4.05622,2465.4,2465.0,0.809]
[1728439208590,8.11247,2465.4,2465.0,0.809]
[1728439208785,4.05622,2465.4,2465.0,0.809]
[1728439209484,4.05632,2465.3,2465.0,0.809]
[1728439209802,4.05648,2465.2,2464.6,8.11473]
[1728439210004,4.05648,2465.2,2464.7,1.634073]
[1728439210568,3.70592436,2465.0,2464.7,0.8226]
[1728439210799,3.70592436,2465.0,2464.4,0.8226]
[1728439210800,4.0573,2464.7,2464.4,0.8226]
[1728439212105,4.0569,2465.0,2464.5,0.7819]
[1728439212272,4.05672,2465.1,2464.5,1.265859]
[1728439212589,4.05672,2465.1,2464.5,0.7819]
[1728439213395,4.05688,2465.0,2464.5,0.7819]
[1728439213603,3.70592436,2465.0,2464.5,0.7819]
[1728439213928,4.05745,2464.6,2464.2,0.8239]
[1728439214534,8.6190818,2464.6,2464.2,0.8239]
[1728439214938,4.05767,2464.5,2464.2,0.8239]
[1728439215315,4.05795,2464.3,2463.9,0.8006]
[1728439215726,4.82248,2464.4,2463.9,0.8006]
[1728439216443,8.88042,2464.4,2463.9,0.8006]
[1728439216614,8.88037,2464.4,2463.9,0.8006]
[1728439216811,4.05762,2464.5,2463.9,0.8006]
[1728439217047,4.05752,2464.6,2464.1,0.7789]
[1728439218263,8.11509,2464.6,2464.1,0.7789]
[1728439218547,4.05752,2464.6,2464.1,0.7789]
[1728439219598,7.42,2464.8,2464.4,0.774]
[1728439219838,8.11375,2465.0,2464.4,4.83163]
[1728439220040,4.05709,2464.9,2464.4,0.774]
[1728439220253,4.05728,2464.8,2464.4,0.774]
[1728439220954,9.006715,2464.9,2464.4,0.774]